bitfinex/quotes_SOLUSD_20240624
["timestamp","ask_amount","ask_price","bid_price","bid_amount"]
[1719206312478,27.2776,125.31,125.23,45.0]
[1719206313275,19.29,125.28,125.22,16.4033]
[1719206315671,19.29,125.28,125.19,7.9875]
[1719206315870,19.29,125.28,125.2,45.0]
[1719206316070,19.29,125.28,125.2,52.9871]
[1719206316446,19.29,125.28,125.21,7.9865]
[1719206316682,19.29,125.28,125.22,45.0]
[1719206317055,19.29,125.28,125.21,45.0]
[1719206317749,19.29,125.28,125.22,7.9856]
[1719206317953,19.29,125.4,125.23,66.9869]
[1719206318188,7.9876,125.39,125.24,20.3016]
[1719206318358,19.29,125.36,125.25,64.9587]
[1719206318689,19.29,125.36,125.28,7.9816]
[1719206318990,19.29,125.36,125.29,52.9814]
[1719206319157,19.29,125.36,125.3,7.9806]
[1719206319357,19.29,125.36,125.31,45.0]
[1719206319778,19.29,125.36,125.3,52.9806]
[1719206320085,19.29,125.36,125.3,45.0]
[1719206320983,19.29,125.36,125.26,21.9183]
[1719206321282,19.29,125.36,125.27,45.0]
[1719206322058,19.29,125.36,125.28,8.3219]
[1719206322254,19.29,125.36,125.29,52.9814]
[1719206322473,19.29,125.36,125.29,45.0]
[1719206323663,19.29,125.36,125.26,21.5783]
[1719206323868,19.29,125.36,125.27,45.34]
[1719206324166,19.29,125.36,125.28,7.9819]
[1719206324359,19.29,125.36,125.29,45.0]
[1719206324869,19.29,125.36,125.28,45.0]
[1719206325378,19.29,125.36,125.28,52.9819]
[1719206326888,19.29,125.36,125.28,45.0]
[1719206327189,19.29,125.34,125.26,21.5783]
[1719206327595,7.9876,125.33,125.23,29.8215]
[1719206327760,7.9876,125.33,125.23,21.8365]
[1719206328085,19.29,125.32,125.24,7.9841]
[1719206328477,19.29,125.32,125.23,29.8215]
[1719206328791,19.29,125.32,125.23,21.8365]
[1719206329290,19.29,125.32,125.23,29.8215]
[1719206329470,19.29,125.32,125.23,21.8365]
[1719206330171,19.29,125.32,125.23,29.8217]
[1719206331074,19.29,125.32,125.24,45.0]
[1719206331382,19.29,125.32,125.24,52.9846]
[1719206331584,19.29,125.32,125.24,45.0]
[1719206331897,19.29,125.32,125.24,52.9842]
[1719206332586,7.9876,125.41,125.26,7.9832]
[1719206332796,19.29,125.34,125.27,45.0]
[1719206333096,19.29,125.34,125.27,52.9825]
[1719206333300,19.29,125.34,125.27,45.0]
[1719206333497,19.29,125.34,125.26,45.0]
[1719206333974,19.29,125.34,125.25,45.17]
[1719206334276,19.29,125.32,125.25,38.25702994]
[1719206334475,19.29,125.3,125.21,7.9862]
[1719206334784,19.29,125.3,125.22,7.9857]
[1719206334981,19.29,125.3,125.23,7.9852]
[1719206335295,19.29,125.3,125.24,7.9845]
[1719206335601,19.29,125.3,125.2,42.4241]
[1719206335796,19.29,125.3,125.21,0.34]
[1719206336096,19.29,125.3,125.24,7.9845]
[1719206336286,19.29,125.3,125.23,8.325]
[1719206336593,19.29,125.3,125.24,45.0]
[1719206336799,19.29,125.3,125.24,52.9846]
[1719206337199,19.29,125.3,125.24,45.0]
[1719206337894,19.29,125.3,125.23,45.17]
[1719206338501,19.29,125.3,125.23,45.0]
[1719206338801,19.29,125.3,125.23,52.9852]
[1719206339385,19.29,125.3,125.23,45.0]
[1719206339588,19.29,125.28,125.2,22.4575]
[1719206339897,19.29,125.28,125.21,7.9861]
[1719206340401,19.29,125.28,125.2,30.4445]
[1719206340712,19.29,125.28,125.2,30.4443]
[1719206341105,19.29,125.28,125.21,7.9865]
[1719206342015,19.29,125.28,125.22,7.9859]
[1719206342222,19.29,125.28,125.2,22.4575]
[1719206342390,19.29,125.28,125.21,45.0]
[1719206342705,19.29,125.28,125.21,52.9863]
[1719206343306,19.29,125.28,125.21,45.0]
[1719206343814,19.29,125.28,125.19,8.1576]
[1719206344015,19.29,125.28,125.2,7.9871]
[1719206344717,19.29,125.28,125.18,7.9882]
[1719206344899,19.29,125.25,125.17,22.2472]
[1719206345216,19.29,125.22,125.15,7.9901]
[1719206345429,19.29,125.22,125.11,26.89275459]
[1719206345430,19.29,125.2,125.13,4.97459358]
[1719206345593,19.29,125.2,125.13,12.96609358]
[1719206345923,19.29,125.2,125.14,7.9907]
[1719206346413,19.29,125.2,125.14,7.9906]
[1719206346603,19.29,125.2,125.13,12.96589358]
[1719206347323,19.29,125.2,125.13,4.97459358]
[1719206347615,19.29,125.18,125.13,4.97459358]
[1719206348394,19.29,125.16,125.13,4.97459358]
[1719206349410,27.2776,125.14,125.13,4.97459358]
[1719206349612,27.2776,125.14,125.11,6.91175459]
[1719206349807,19.29,125.12,125.11,6.91175459]
[1719206350112,19.29,125.12,125.08,5.78736975]
[1719206350293,19.29,125.09,125.07,6.42141845]
[1719206350616,0.17,125.08,125.0,53.925877]
[1719206350789,19.29,125.06,125.03,11.96661433]
[1719206351199,19.29,125.06,125.03,14.26377561]
[1719206351393,38.58,125.04,125.0,53.925877]
[1719206351699,19.29,125.01,124.99,10.33722577]
[1719206351895,3.013,125.07,124.97,8.94851929]
[1719206352121,19.29,125.04,124.97,8.94851929]
[1719206352327,19.29,125.02,124.97,8.94851929]
[1719206352519,19.29,124.98,124.97,5.95551929]
[1719206352722,22.84,124.98,124.96,4.70855065]
[1719206352897,22.84,124.98,124.88,35.39601305]
[1719206353097,0.17,124.97,124.88,35.39601305]
[1719206353333,22.67,124.95,124.88,35.39601305]
[1719206353625,22.67,124.91,124.88,31.91546159]
[1719206353830,0.17,124.9,124.86,7.89921799]
[1719206354128,22.67,124.87,124.86,7.89921799]
[1719206354322,0.17,124.87,124.84,13.53718245]
[1719206354498,0.17,124.9,124.84,13.53718245]
[1719206354701,355.0,125.06,124.84,13.53718245]
[1719206354914,45.34,124.98,124.84,13.53718245]
[1719206355222,93.17,124.97,124.84,13.53718245]
[1719206355418,0.17,124.96,124.84,13.53718245]
[1719206355622,70.67,124.95,124.84,13.53718245]
[1719206355798,45.34,124.94,124.84,13.53718245]
[1719206356000,48.0,124.93,124.84,13.53718245]
[1719206356313,22.67,124.91,124.84,13.53718245]
[1719206356513,0.17,124.9,124.84,13.53718245]
[1719206356709,0.34,124.9,124.84,13.53718245]
[1719206356898,45.34,124.9,124.84,13.53718245]
[1719206357097,0.34,124.9,124.84,13.53718245]
[1719206357326,22.67,124.98,124.84,13.53718245]
[1719206357537,13.866119,124.91,124.84,13.53718245]
[1719206357827,22.67,124.98,124.84,13.53718245]
[1719206358035,13.866119,124.97,124.84,13.53718245]
[1719206358327,13.866119,124.97,124.87,8.0077]
[1719206358620,13.866119,124.97,124.87,8.0083]
[1719206358827,13.866119,124.97,124.84,13.53718245]
[1719206359002,61.866119,124.97,124.84,13.53718245]
[1719206359205,48.0,124.95,124.84,13.53718245]
[1719206359910,0.17,124.94,124.84,13.53718245]
[1719206360318,45.34,124.95,124.84,13.53718245]
[1719206360513,0.17,124.95,124.84,21.54688245]
[1719206360714,13.866119,124.97,124.84,13.53718245]
[1719206361121,61.866119,124.97,124.84,13.53718245]
[1719206361329,70.67,124.93,124.84,13.53718245]
[1719206361532,0.17,124.92,124.84,13.53718245]
[1719206361827,30.0,124.9,124.84,13.53718245]
[1719206362023,0.17,124.89,124.84,13.53718245]
[1719206362541,0.34,124.89,124.84,13.53718245]
[1719206362705,30.0,124.9,124.84,13.53718245]
[1719206362899,30.0,124.89,124.84,13.53718245]
[1719206363322,48.0,124.96,124.84,13.53718245]
[1719206364025,22.67,124.93,124.84,13.53718245]
[1719206364237,22.67,124.93,124.81,6.42313311]
[1719206364238,22.67,124.85,124.81,6.42313311]
[1719206364528,70.67,124.82,124.76,10.52573632]
[1719206364843,45.17,124.81,124.76,10.52573632]
[1719206365031,0.17,124.81,124.76,10.52573632]
[1719206365205,0.17,124.84,124.76,10.52573632]
[1719206365909,22.67,124.9,124.76,10.52573632]
[1719206366102,45.0,124.89,124.76,10.52573632]
[1719206366334,22.67,124.87,124.76,10.52573632]
[1719206366503,45.0,124.89,124.76,10.52573632]
[1719206366707,20.41752137,124.97,124.78,6.118]
[1719206366925,48.0,124.92,124.78,6.118]
[1719206367329,22.67,124.94,124.78,6.118]
[1719206367947,22.67,124.94,124.78,14.132]
[1719206367948,70.67,124.94,124.78,14.132]
[1719206368239,13.866119,124.97,124.78,6.118]
[1719206368408,22.67,124.95,124.78,6.118]
[1719206368604,22.67,124.91,124.78,6.118]
[1719206368914,48.0,124.9,124.78,6.118]
[1719206369118,48.0,124.91,124.78,6.118]
[1719206369330,22.67,124.9,124.78,6.118]
[1719206369835,0.17,124.89,124.78,6.118]
[1719206370013,13.866119,124.97,124.78,6.118]
[1719206370014,48.0,124.96,124.79,8.013]
[1719206370209,48.0,124.96,124.8,8.0127]
[1719206370210,22.67,124.92,124.8,8.0127]
[1719206370516,22.67,124.92,124.79,8.0133]
[1719206370724,22.67,124.92,124.78,5.118]
[1719206370927,22.67,124.92,124.78,13.1319]
[1719206371127,22.67,124.92,124.78,5.118]
[1719206371719,0.17,124.91,124.78,5.118]
[1719206372234,45.34,124.91,124.78,5.118]
[1719206372422,93.34,124.91,124.78,5.118]
[1719206372920,45.17,124.91,124.78,5.118]
[1719206373121,45.34,124.92,124.78,5.118]
[1719206373314,13.866119,124.97,124.78,13.132]
[1719206373315,48.0,124.94,124.78,13.132]
[1719206373638,22.67,124.91,124.78,5.118]
[1719206374833,22.67,124.91,124.78,13.1315]
[1719206375037,22.67,124.91,124.78,5.118]
[1719206375414,22.67,124.91,124.78,13.1317]
[1719206376040,22.67,124.91,124.78,5.118]
[1719206376339,45.17,124.9,124.78,5.118]
[1719206376557,0.17,124.89,124.78,5.118]
[1719206377135,22.67,124.91,124.78,5.118]
[1719206377341,70.67,124.91,124.78,5.118]
[1719206377639,22.67,124.86,124.78,5.118]
[1719206377845,22.67,124.86,124.77,16.3799]
[1719206378138,0.17,124.85,124.76,10.52573632]
[1719206378349,93.34,124.85,124.76,10.52573632]
[1719206378518,0.34,124.85,124.76,10.52573632]
[1719206378709,22.67,124.92,124.76,10.52573632]
[1719206378909,93.17,124.91,124.76,10.52573632]
[1719206379541,93.0,124.91,124.77,8.0146]
[1719206379745,48.0,124.91,124.76,10.52573632]
[1719206379948,48.0,124.91,124.76,18.54103632]
[1719206380239,48.0,124.91,124.76,10.52573632]
[1719206380620,48.0,124.91,124.77,45.0]
[1719206380810,0.17,124.9,124.76,10.52573632]
[1719206381016,93.17,124.9,124.76,10.52573632]
[1719206381419,0.17,124.89,124.76,10.52573632]
[1719206381641,22.67,124.92,124.77,21.7609]
[1719206381849,22.67,124.94,124.77,21.7609]
[1719206382015,22.67,124.94,124.82,8.0113]
[1719206382336,13.866119,124.97,124.83,45.0]
[1719206382519,13.866119,124.97,124.85,22.5385]
[1719206383038,13.866119,124.97,124.85,30.548]
[1719206383247,13.866119,124.97,124.85,22.5385]
[1719206383748,61.866119,124.97,124.85,22.5385]
[1719206384060,61.866119,124.97,124.81,6.41]
[1719206384061,22.67,124.92,124.81,6.41]
[1719206384545,0.17,124.91,124.81,6.41]
[1719206384756,22.67,124.92,124.81,6.41]
[1719206384907,61.866119,124.97,124.81,6.41]
[1719206385111,22.67,124.94,124.81,6.41]
[1719206385538,13.866119,124.97,124.81,6.41]
[1719206385722,13.866119,124.97,124.84,8.0101]
[1719206385928,13.866119,124.97,124.85,8.0094]
[1719206386136,13.866119,124.97,124.84,8.01]
[1719206386321,13.866119,124.97,124.85,45.0]
[1719206386638,13.866119,124.97,124.87,8.0082]
[1719206386856,10.0,125.06,124.84,0.17]
[1719206386857,22.67,125.02,124.88,66.9649]
[1719206387139,22.67,125.02,124.88,21.9649]
[1719206387140,22.67,125.0,124.88,21.9649]
[1719206387338,22.67,124.99,124.88,21.9649]
[1719206387846,22.67,125.0,124.88,21.9649]
[1719206388019,22.67,125.04,124.89,45.0]
[1719206388565,22.67,125.03,124.89,45.0]
[1719206388851,22.65,125.05,124.89,45.0]
[1719206389139,22.67,125.04,124.92,8.0049]
[1719206389553,22.67,125.04,124.93,8.0042]
[1719206389740,22.65,125.05,124.89,65.0171]
[1719206390038,32.074631,125.08,124.94,8.0036]
[1719206390238,32.074631,125.08,124.95,53.003]
[1719206390447,277.65,125.1,124.95,45.0]
[1719206390650,32.072814,125.09,124.95,45.0]
[1719206391243,32.072814,125.09,124.96,15.2157]
[1719206393058,0.17,125.08,124.96,15.2157]
[1719206393218,22.65,125.04,124.96,15.2157]
[1719206393543,0.17,125.03,124.96,15.2157]
[1719206394123,0.34,125.03,124.96,15.2157]
[1719206394324,22.65,125.04,124.96,15.2157]
[1719206395535,0.34,125.05,124.96,15.2157]
[1719206397923,32.072814,125.09,124.96,15.2157]
[1719206397924,32.072814,125.09,124.97,6.4096]
[1719206398125,22.65,125.11,124.98,45.0]
[1719206398318,22.65,125.11,124.97,6.4096]
[1719206398523,32.069271,125.1,124.97,14.4114]
[1719206398749,32.069271,125.1,124.97,14.4111]
[1719206398956,22.65,125.11,124.97,6.4096]
[1719206399118,20.008,125.1,124.97,6.4096]
[1719206400133,0.17,125.09,124.97,6.4096]
[1719206400334,20.008,125.1,124.99,8.0005]
[1719206400540,20.008,125.1,125.0,52.9998]
[1719206400785,255.0,125.15,125.02,7.9982]
[1719206400950,55.5682808,125.16,125.04,7.997]
[1719206401152,55.5682808,125.16,125.02,6.3255]
[1719206401466,55.5682808,125.16,125.03,52.9978]
[1719206401658,23.5092738,125.16,125.03,45.0]
[1719206401864,23.5092738,125.16,125.04,15.8193]
[1719206402073,23.5092738,125.16,125.06,7.9961]
[1719206402266,0.8592738,125.16,125.04,35.8121]
[1719206402466,0.8592738,125.16,125.05,45.17]
[1719206402856,0.8592738,125.16,125.06,7.9959]
[1719206403056,0.8592738,125.16,125.07,52.9954]
[1719206403361,0.8592738,125.16,125.06,7.9956]
[1719206403562,0.8592738,125.16,125.07,45.0]
[1719206403776,0.8592738,125.16,125.04,15.8193]
[1719206403989,22.65,125.15,125.04,15.8193]
[1719206404452,20.8609738,125.16,125.05,6.213]
[1719206404657,20.8609738,125.16,125.06,7.9959]
[1719206404959,0.8592738,125.16,125.05,14.2094]
[1719206405578,0.8592738,125.16,125.05,6.213]
[1719206405884,0.8592738,125.16,125.08,7.9946]
[1719206406055,0.8592738,125.16,125.06,45.0]
[1719206406256,0.8592738,125.16,125.07,7.9951]
[1719206406468,0.8592738,125.16,125.08,45.0]
[1719206407051,0.8592738,125.16,125.05,14.2092]
[1719206407297,0.8592738,125.16,125.06,45.0]
[1719206407593,0.8592738,125.16,125.09,7.9936]
[1719206407780,0.8592738,125.16,125.11,6.213]
[1719206408479,1.0,125.26,125.11,6.213]
[1719206408673,45.3,125.28,125.12,45.0]
[1719206408872,22.65,125.28,125.14,7.9906]
[1719206409392,0.8592738,125.29,125.16,16.4872]
[1719206409693,0.8592738,125.29,125.16,24.4765]
[1719206409878,0.8592738,125.29,125.17,45.0]
[1719206410076,0.8592738,125.29,125.16,16.4872]
[1719206410591,0.8592738,125.29,125.17,6.5163]
[1719206410772,0.8592738,125.29,125.17,14.5051]
[1719206410974,24.5092738,125.29,125.17,6.5163]
[1719206411776,22.65,125.27,125.17,6.5163]
[1719206413289,22.65,125.27,125.18,45.0]
[1719206413695,22.65,125.27,125.17,6.5163]
[1719206414572,22.65,125.27,125.18,45.0]
[1719206414791,0.17,125.26,125.17,6.5163]
[1719206415001,22.65,125.27,125.17,6.5163]
[1719206415169,22.65,125.27,125.18,45.0]
[1719206416107,22.65,125.27,125.17,6.5163]
[1719206416404,0.34,125.26,125.17,6.5163]
[1719206417001,22.57,125.27,125.17,6.5163]
[1719206417176,22.57,125.27,125.17,14.5053]
[1719206417378,24.5092738,125.29,125.2,7.9871]
[1719206417611,0.8592738,125.29,125.19,7.9876]
[1719206417788,0.8592738,125.29,125.18,7.9882]
[1719206417989,0.8592738,125.29,125.17,6.5163]
[1719206418174,0.8592738,125.29,125.18,47.54198189]
[1719206418379,0.8592738,125.29,125.18,67.51198189]
[1719206418596,0.8592738,125.29,125.2,7.987]
[1719206418902,0.8592738,125.29,125.21,45.0]
[1719206419295,0.8592738,125.29,125.18,0.34]
[1719206419603,0.8592738,125.29,125.2,7.9866]
[1719206419778,0.8592738,125.29,125.21,45.0]
[1719206420178,0.8592738,125.29,125.21,52.9863]
[1719206420406,0.8592738,125.29,125.22,0.17]
[1719206420605,0.8592738,125.29,125.22,8.1555]
[1719206420777,0.8592738,125.29,125.23,45.0]
[1719206421784,0.8592738,125.29,125.22,45.0]
[1719206421988,0.8592738,125.29,125.17,6.5163]
[1719206422310,22.57,125.28,125.17,6.5163]
[1719206422903,0.34,125.27,125.17,6.5163]
[1719206423282,45.34,125.27,125.17,6.5163]
[1719206423484,0.34,125.27,125.17,6.5163]
[1719206423882,0.34,125.27,125.18,7.988]
[1719206424078,0.8592738,125.29,125.19,7.9878]
[1719206424311,0.8592738,125.29,125.18,7.9882]
[1719206424612,23.4192738,125.29,125.17,6.5163]
[1719206424786,45.0,125.28,125.17,6.5163]
[1719206424987,22.56,125.25,125.13,6.6167]
[1719206425283,45.0,125.24,125.13,6.6167]
[1719206425483,45.34,125.24,125.11,16.1731]
[1719206425690,22.56,125.21,125.09,6.0438]
[1719206425891,0.34,125.2,125.09,6.0438]
[1719206426095,45.34,125.2,125.09,6.0438]
[1719206426308,45.34,125.2,125.04,6.0438]
[1719206426486,22.56,125.17,125.04,6.0438]
[1719206426686,22.56,125.13,125.01,15.6388]
[1719206426989,0.17,125.12,125.01,15.6388]
[1719206427314,0.34,125.12,125.01,15.6388]
[1719206427511,0.34,125.12,125.01,23.6377]
[1719206427811,45.34,125.12,125.01,15.6388]
[1719206428413,0.34,125.12,125.01,23.6381]
[1719206428706,0.34,125.12,125.02,7.9986]
[1719206429313,1.8589,125.19,125.01,215.6388]
[1719206429520,1.8589,125.19,125.01,225.6388]
[1719206429817,22.56,125.22,125.03,15.1977]
[1719206429988,39.92956556,125.32,125.03,15.1977]
[1719206429989,0.8592738,125.29,125.27,7.9822]
[1719206430193,30.0,125.28,125.24,7.9845]
[1719206430403,0.8592738,125.29,125.25,45.0]
[1719206430866,0.8592738,125.29,125.23,0.17]
[1719206431153,0.8592738,125.29,125.23,45.34]
[1719206431527,0.8592738,125.29,125.23,45.0]
[1719206431852,0.8592738,125.29,125.19,44.003]
[1719206432048,0.8592738,125.29,125.2,52.987]
[1719206432761,0.8592738,125.29,125.21,7.9865]
[1719206432927,0.8592738,125.29,125.2,45.0]
[1719206433124,0.8592738,125.29,125.21,0.34]
[1719206433329,0.8592738,125.29,125.21,20.3058]
[1719206433529,0.8592738,125.29,125.21,0.34]
[1719206433831,0.8592738,125.29,125.22,7.9857]
[1719206434027,0.8592738,125.29,125.24,7.9845]
[1719206434259,0.8592738,125.29,125.21,0.34]
[1719206434260,0.8592738,125.29,125.25,7.9836]
[1719206437377,0.8592738,125.29,125.24,19.9614]
[1719206437581,0.8592738,125.29,125.25,45.0]
[1719206437751,0.8592738,125.29,125.21,20.3049]
[1719206438076,0.8592738,125.29,125.22,45.0]
[1719206438265,0.8592738,125.29,125.23,0.34]
[1719206438479,0.8592738,125.29,125.23,20.3026]
[1719206438651,0.8592738,125.29,125.26,7.9828]
[1719206438852,0.8592738,125.29,125.25,7.9838]
[1719206439187,0.8592738,125.29,125.24,45.0]
[1719206439349,0.8592738,125.29,125.25,7.984]
[1719206439746,0.8592738,125.29,125.26,7.9832]
[1719206439971,0.8592738,125.29,125.25,7.9839]
[1719206440656,0.8592738,125.29,125.26,7.9831]
[1719206440857,0.8592738,125.29,125.27,45.17]
[1719206441054,0.8592738,125.29,125.28,7.9821]
[1719206441267,0.8592738,125.29,125.28,53.3221]
[1719206441479,0.8592738,125.29,125.28,73.2774]
[1719206442072,0.8592738,125.29,125.28,53.3221]
[1719206442865,0.8592738,125.29,125.28,45.0]
[1719206443182,0.8592738,125.29,125.24,19.9615]
[1719206443479,0.8592738,125.29,125.27,7.9827]
[1719206443654,0.8592738,125.29,125.26,7.9829]
[1719206443982,0.8592738,125.29,125.27,7.9823]
[1719206444161,0.8592738,125.29,125.24,19.9601]
[1719206444362,0.8592738,125.29,125.27,7.9823]
[1719206444565,0.8592738,125.29,125.26,7.9831]
[1719206444888,0.8592738,125.29,125.27,7.9827]
[1719206445198,0.8592738,125.29,125.28,7.9821]
[1719206445479,0.8592738,125.29,125.22,39.9272]
[1719206445697,0.8592738,125.29,125.28,7.9821]
[1719206445853,0.8592738,125.29,125.28,52.9821]
[1719206446757,0.8592738,125.29,125.28,45.0]
[1719206447262,0.8592738,125.29,125.28,52.9821]
[1719206449191,0.8592738,125.29,125.28,53.1521]
[1719206449475,0.8592738,125.41,125.31,7.9801]
[1719206449871,0.8592738,125.41,125.32,0.86846955]
[1719206450286,0.8592738,125.41,125.29,19.9533]
[1719206450468,0.8592738,125.41,125.3,45.34]
[1719206450683,0.8592738,125.41,125.3,45.0]
[1719206451277,0.8592738,125.41,125.3,52.9804]
[1719206451499,0.8592738,125.41,125.31,7.9801]
[1719206451686,0.34,125.4,125.3,45.0]
[1719206452304,0.8592738,125.41,125.3,45.0]
[1719206452305,0.8592738,125.41,125.32,7.9792]
[1719206452479,0.8592738,125.41,125.3,45.0]
[1719206452785,0.8592738,125.41,125.28,16.5335]
[1719206452970,0.8592738,125.41,125.29,7.981]
[1719206453176,0.8592738,125.41,125.3,7.9805]
[1719206453382,0.8592738,125.41,125.29,7.9812]
[1719206453684,0.8592738,125.41,125.28,7.9819]
[1719206453685,0.34,125.4,125.28,7.9819]
[1719206454084,0.34,125.4,125.28,7.9816]
[1719206454718,0.34,125.4,125.29,7.9812]
[1719206454878,0.34,125.4,125.28,7.9819]
[1719206455078,0.34,125.4,125.29,7.9813]
[1719206455815,1.0,125.39,125.25,7.9836]
[1719206456008,1.0,125.39,125.23,7.9852]
[1719206456009,0.17,125.38,125.23,7.9852]
[1719206456218,0.34,125.38,125.21,6.5384]
[1719206456412,0.34,125.38,125.22,7.9858]
[1719206456707,1.7179,125.37,125.22,7.9858]
[1719206456879,0.34,125.36,125.22,7.9858]
[1719206457276,0.34,125.36,125.23,7.985]
[1719206457479,0.34,125.36,125.21,6.5384]
[1719206457708,0.34,125.36,125.22,7.9855]
[1719206458613,0.34,125.36,125.23,7.9852]
[1719206459604,0.34,125.36,125.21,7.986]
[1719206460213,0.34,125.36,125.23,7.9851]
[1719206460683,1.7179,125.37,125.2,100.0]
[1719206460887,1.7179,125.37,125.21,45.34]
[1719206461202,1.7179,125.37,125.23,22.56]
[1719206461513,1.0,125.39,125.25,6.0528]
[1719206461812,1.0,125.39,125.3,7.9805]
[1719206462105,1.0,125.39,125.25,6.0528]
[1719206462408,1.0,125.39,125.26,52.9832]
[1719206462641,1.0,125.39,125.26,64.958]
[1719206462783,1.0,125.39,125.27,7.9827]
[1719206462984,1.0,125.39,125.26,52.9831]
[1719206463179,0.34,125.38,125.26,45.0]
[1719206463379,0.34,125.38,125.27,7.9826]
[1719206463583,0.34,125.38,125.28,52.9821]
[1719206463819,0.34,125.38,125.28,7.9818]
[1719206464316,0.17,125.38,125.29,52.9814]
[1719206464614,1.0,125.39,125.23,19.9629]
[1719206464818,1.0,125.39,125.25,7.9835]
[1719206464985,1.0,125.39,125.24,7.9844]
[1719206465412,1.0,125.39,125.27,7.9823]
[1719206465587,1.0,125.39,125.25,7.9839]
[1719206465788,0.34,125.38,125.26,7.9832]
[1719206466020,0.34,125.38,125.23,19.9617]
[1719206466189,0.34,125.38,125.23,7.9851]
[1719206466515,1.7179,125.37,125.22,2.2012785]
[1719206466714,0.17,125.36,125.23,7.9852]
[1719206466886,0.17,125.36,125.22,10.1868785]
[1719206466887,0.34,125.36,125.22,10.1868785]
[1719206467087,1.0,125.35,125.2,7.9868]
[1719206467401,0.34,125.34,125.18,259.9]
[1719206467612,0.34,125.34,125.19,7.9874]
[1719206467916,1.7179,125.33,125.19,7.9878]
[1719206468087,0.17,125.32,125.13,296.5005]
[1719206468291,0.34,125.32,125.17,7.9888]
[1719206468494,0.34,125.32,125.16,7.9896]
[1719206468695,0.34,125.32,125.17,7.9891]
[1719206468900,1.0,125.31,125.14,7.9904]
[1719206469195,22.73,125.3,125.16,7.9895]
[1719206469414,0.17,125.29,125.17,7.9889]
[1719206469619,0.17,125.3,125.17,7.9889]
[1719206469911,0.34,125.3,125.13,298.70396177]
[1719206470086,0.34,125.3,125.17,7.9889]
[1719206470291,0.34,125.3,125.16,7.9892]
[1719206470603,0.34,125.3,125.15,7.9903]
[1719206470908,0.34,125.3,125.13,298.70396177]
[1719206471112,0.34,125.3,125.16,7.9897]
[1719206471420,1.7179,125.29,125.13,262.10286177]
[1719206471589,0.17,125.28,125.13,2.20286177]
[1719206471909,1.7179,125.29,125.17,19.9713]
[1719206472287,1.7179,125.29,125.2,7.9871]
[1719206472493,1.7179,125.29,125.15,119.9758]
[1719206472692,1.7179,125.29,125.19,7.9875]
[1719206473207,1.7179,125.29,125.2,45.0]
[1719206474214,1.7179,125.29,125.19,45.0]
[1719206474400,0.17,125.28,125.13,2.20286177]
[1719206474604,0.34,125.28,125.13,2.20286177]
[1719206474801,0.34,125.28,125.17,7.989]
[1719206475101,0.34,125.28,125.16,7.9895]
[1719206475308,1.0,125.27,125.13,10.19426177]
[1719206475493,1.0,125.27,125.14,7.9909]
[1719206475698,0.34,125.26,125.14,7.9909]